Cogmind - Beta 17 @@@ ROGUE MODE // 2026.07.03 @ 23:48:04 Player: SilverStar Result: Destroyed by X-77 Beamer with Gatling Laser Performance ------------- Evolutions (5) 2500 Regions Visited (9) 1800 Robots Destroyed (99) 495 Value Destroyed (3493) 3493 Prototype IDs (1) 20 Alien Tech Used (0) 0 Bonus (14) 14 TOTAL SCORE: 8322 Bonus ------- Follower Combat Kills 14 Cogmind --------- Core Integrity 0/1000 Matter 284/300 Energy 21/100 System Corruption 15% Temperature Danger (444) Movement Core (1350) Ox26 Location -5/Factory Parts ------- > --- POWER (2) -------- (None) > --- PROPULSION (5) --- (None) > --- UTILITY (7) ------ Huge Storage Unit Core Analyzer > --- WEAPON (3) ------- (None) > --- INVENTORY (25) --- Fission Core Neutrino Core Neutrino Core Improved Medium Treads Heavy Treads Advanced Heat Sink Improved Cooling System High-capacity Storage Unit High-capacity Battery (250) Advanced Sensor Array Advanced Targeting Computer Advanced Shield Generator Heavy Particle Cannon Heavy Ion Cannon Heavy Shock Bomb Launcher Peak State ------------ > --- POWER ------------ Neutrino Core Antimatter Reactor > --- PROPULSION ------- Heavy Treads Armored Wheel Armored Huge Wheel > --- UTILITY ---------- Advanced Heat Sink Improved Cooling System Huge Storage Unit Core Analyzer Heavy Armor Plating Advanced Shield Generator > --- WEAPON ----------- Heavy Ion Cannon Compact Ion Cannon Advanced Plasma Cannon > --- INVENTORY -------- Fission Core Neutrino Core Neutrino Core Heavy Treads Wheel Wheel Wheel Improved Heat Sink High-capacity Storage Unit High-capacity Battery Advanced Sensor Array Advanced Targeting Computer Heavy Armor Plating Damper Plating Shield Generator Proton Cannon Heavy Particle Cannon Heavy Particle Cannon Heavy Shock Bomb Launcher Heavy Shock Bomb Launcher [Rating: 87] Favorites ----------- Power Neutrino Core Engine Ion Engine Power Core Neutrino Core Reactor Antimatter Reactor Propulsion Light Treads Treads Light Treads Wheel Armored Wheel Utility Core Analyzer Device Advanced Heat Sink Storage Huge Storage Unit Processor Core Analyzer Protection Heavy Armor Plating Weapon Heavy EM Pulse Gun Energy Gun Heavy EM Pulse Gun Energy Cannon Compact Ion Cannon Ballistic Gun Light Assault Rifle Launcher Heavy Shock Bomb Launcher Special Weapon Mining Laser Build | -11 -10 -10 -9 -8 -7 -6 -5 -5 -5 ------- Run | Yrd Mat Min Mat Mat Fac Fac Fac Was Fac Slots Evolved 10 | . . . 2 2 2 2 2 . . Power 1 | . . . . . . . 1 . . Propulsion 3 | . . . 1 1 . 1 . . . Utility 5 | . . . 1 1 1 1 1 . . Weapon 1 | . . . . . 1 . . . . Parts Attached 91 | 6 4 3 13 7 18 10 7 5 18 Power 13 | 1 . . 1 . 4 2 2 1 2 Engine 5 | 1 . . 1 . 3 . . . . Core 6 | . . . . . 1 2 2 . 1 Reactor 2 | . . . . . . . . 1 1 Propulsion 20 | 2 . . 5 . 4 . . 2 7 Treads 8 | 2 . . 1 . 3 . . 2 . Leg . | . . . . . . . . . . Wheel 12 | . . . 4 . 1 . . . 7 Hover . | . . . . . . . . . . Flight . | . . . . . . . . . . Utility 34 | 1 2 1 4 5 6 3 5 2 5 Device 16 | . 1 1 1 2 3 1 4 1 2 Storage 5 | 1 1 . 1 . 1 1 . . . Processor 2 | . . . . . 1 . . . 1 Hackware . | . . . . . . . . . . Protection 11 | . . . 2 3 1 1 1 1 2 Artifact . | . . . . . . . . . . Weapon 24 | 2 2 2 3 2 4 5 . . 4 Energy Gun 11 | . 2 1 3 1 3 1 . . . Energy Cannon 8 | . . . . . 1 4 . . 3 Ballistic Gun 2 | 2 . . . . . . . . . Ballistic Cannon . | . . . . . . . . . . Launcher 2 | . . . . 1 . . . . 1 Special Weapon 1 | . . 1 . . . . . . . Impact Weapon . | . . . . . . . . . . Slashing Weapon . | . . . . . . . . . . Piercing Weapon . | . . . . . . . . . . Special Melee Weapon . | . . . . . . . . . . Unidentified Prototypes 1 | . . . . . . 1 . . . Corrupted Parts 1 | . . . . . . . . . 1 System Corruption 6 | . . . . . . . . . 6 Parts Lost 32 | . . . 2 3 3 . . . 24 Power 5 | . . . 1 . . . . . 4 Propulsion 10 | . . . . 1 . . . . 9 Utility 5 | . . . . . . . . . 5 Weapon 12 | . . . 1 2 3 . . . 6 Highest Loss Streak 21 | . . . 2 2 2 . . . 21 To Critical Strikes . | . . . . . . . . . . Average Backups 17 | 2 11 14 15 16 17 21 21 20 20 Power 2 | . 1 1 1 1 1 2 2 3 3 Propulsion 3 | 1 2 2 3 2 2 4 5 4 3 Utility 8 | . 3 6 7 9 10 10 9 8 8 Weapon 4 | . 4 4 3 2 2 4 4 5 5 Tool/Special . | . . . . . . . . . . Unused Backups 25 | . . 2 4 1 . 4 . 3 11 Power 3 | . . . 1 . . . . . 2 Propulsion 3 | . . . . . . . . 2 1 Utility 13 | . . 2 2 1 . 1 . 1 6 Weapon 6 | . . . 1 . . 3 . . 2 Tool/Special . | . . . . . . . . . . Average Slot Usage (%) 89 | . 94 99 91 89 86 92 93 86 83 Engine 5 | . 14 14 10 9 6 2 1 . . Core 2 | . . . . . . 3 9 6 5 Reactor 1 | . . . . . . . . 3 4 Treads 13 | . 26 28 11 18 14 13 11 7 4 Wheel 11 | . . . 21 18 8 13 11 11 14 Device 10 | . 10 13 8 8 6 6 16 17 14 Storage 8 | . 14 14 11 9 7 12 5 5 5 Processor 4 | . . . . . 7 6 5 5 6 Protection 8 | . . . 6 9 15 13 11 7 4 Energy Gun 9 | . 20 25 21 17 11 6 . . . Energy Cannon 8 | . . . . . 4 12 17 17 16 Peak Build Rating 87 | 6 12 13 18 26 53 65 77 84 87 Average Rating 49 | 4 10 12 16 23 40 62 72 80 82 On Entrance 34 | . 6 12 12 18 26 52 61 77 84 Avg Prop Armor Cover (%) 8 | . . . 6 9 10 9 9 7 7 Naked Turns . | . . . . . . . . . . Heaviest Build 166 | 12 32 32 63 69 116 130 151 152 166 Greatest Support 40 | 40 40 40 26 22 28 40 40 40 40 Greatest Overweight (x) 8 | . . . 2 3 4 3 3 3 8 Average Overweight (x) 2 | . . . 1 2 2 2 3 3 3 Largest Inventory Capacity 25 | 8 15 15 20 20 25 25 25 25 25 Average Capacity 21 | 7 14 15 18 20 22 25 25 25 25 Most Carried 25 | 4 15 15 20 20 25 25 25 25 25 Average Carried 20 | 2 11 14 17 19 20 24 24 24 24 Final Capacity 25 | 8 15 15 20 20 25 25 25 25 25 Final Carried 25 | 4 15 15 20 20 25 25 25 25 16 Class Distribution -------------------- 44% | Mutant 28% | Scavenger-Tank 27% | Tank Dominant Class ---------------- Mutant | -10/Materials Mutant | -10/Mines Mutant | -9/Materials Mutant | -8/Materials Mutant | -7/Factory Tank | -6/Factory Tank | -5/Factory Scavenger-Tank | -5/Waste Scavenger-Tank | -5/Factory Resources | -11 -10 -10 -9 -8 -7 -6 -5 -5 -5 ----------- Run | Yrd Mat Min Mat Mat Fac Fac Fac Was Fac Matter Collected 1499 | 252 78 180 80 127 362 107 120 50 143 Remotely . | . . . . . . . . . . Salvage Created 4513 | . 112 282 256 540 576 591 489 544 1123 Parts 228 | . 8 10 23 34 40 30 15 6 62 Haulers Intercepted . | . . . . . . . . . . Recyclers Shooed 1 | . . . . . . . 1 . . Parts Field Recycled . | . . . . . . . . . . Retrieved Matter . | . . . . . . . . . . Parts Self-Destructed . | . . . . . . . . . . Prevented . | . . . . . . . . . . Parts Restored . | . . . . . . . . . . Kills | -11 -10 -10 -9 -8 -7 -6 -5 -5 -5 ------- Run | Yrd Mat Min Mat Mat Fac Fac Fac Was Fac Combat Hostiles Destroyed 76 | . 3 8 9 12 12 9 4 . 19 Guns 26 | . 3 6 7 6 4 . . . . Cannons 29 | . . . . . 3 7 3 . 16 AOE 15 | . . 1 2 4 3 2 . . 3 Classes Destroyed 12 | . 2 2 1 2 1 1 1 . 2 Worker 8 | . . . . . . 2 . . 6 Builder 4 | . . . . 3 1 . . . . Tunneler 1 | . . 1 . . . . . . . Recycler 2 | . 1 . . . . . 1 . . Operator 1 | . . . . . . . 1 . . Watcher 7 | . . . . 1 . 3 . . 3 Swarmer 30 | . 3 4 6 4 3 3 . . 7 Grunt 25 | . . 4 1 7 5 3 . . 5 Sentry 10 | . . . 2 1 3 . 4 . . Programmer 9 | . . . . . 1 3 . . 5 Heavy 1 | . . . . . . . . . 1 Behemoth 1 | . . . . . . . . . 1 Best Kill Streak 6 | . 4 5 3 5 5 5 1 . 6 Combat Bots Only 5 | . 3 4 3 5 4 3 1 . 5 Max Kills in Single Turn 4 | . 1 1 2 4 2 2 1 . 3 Gunslinging . | . . . . . . . . . . Exploded 4 | . . 1 2 4 1 2 . . 3 Melee . | . . . . . . . . . . Uniques/NPCs Destroyed . | . . . . . . . . . . Combat | -11 -10 -10 -9 -8 -7 -6 -5 -5 -5 -------- Run | Yrd Mat Min Mat Mat Fac Fac Fac Was Fac Hostile Shots Fired 911 | . 10 28 51 75 178 27 30 . 512 Missed 300 | . 1 10 13 15 78 7 14 . 162 Hits 611 | . 9 18 38 60 100 20 16 . 350 Projectile 611 | . 9 18 38 60 100 20 16 . 350 Critical Strikes 14 | . . . . 1 3 1 1 . 8 Damage Taken 8271 | . 115 199 462 992 1174 424 241 . 4664 Core 1396 | . 33 58 64 59 142 33 29 . 978 Absorbed by Shields 668 | . . . . . . . 86 . 582 Ignored by Resistances 296 | . . . . . . 20 51 . 225 Regen/Repaired (Parts) 263 | . 27 . 101 . 135 . . . . Core Remaining (%) 85 | 100 . 63 84 89 79 96 . . . Volleys Fired 253 | . 7 30 26 45 44 17 18 5 61 Largest 3 | . 2 2 2 2 3 3 3 3 3 Hottest 253 | . 90 100 85 90 182 240 230 230 253 Shots Fired 538 | . 14 47 45 79 76 50 54 15 158 Gun 234 | . 14 34 45 78 47 16 . . . Cannon 284 | . . . . . 25 34 54 15 156 Launcher 7 | . . . . 1 4 . . . 2 Special 13 | . . 13 . . . . . . . Kinetic . | . . . . . . . . . . Thermal 266 | . . 13 . . 11 28 44 15 155 Explosive 5 | . . . . 1 4 . . . . Electromagnetic 267 | . 14 34 45 78 61 22 10 . 3 Robot Hit Streak 15 | . 4 7 8 9 6 9 10 15 9 Robot Miss Streak 7 | . 3 1 7 5 3 3 3 . 4 Penetration Max . | . . . . . . . . . . Secondary Targets 3 | . . 1 1 1 . . . . . Max Gunslinging Chain 1 | . . 1 1 1 . . . . . Shots Hit Robots 302 | . 9 25 24 45 42 33 32 13 79 Core Hits 162 | . 4 9 11 25 25 25 12 4 47 Critical Kills . | . . . . . . . . . . Critical Parts Destroyed . | . . . . . . . . . . Critical Strikes 7 | . 1 1 . 3 1 1 . . . Corrupt 7 | . 1 1 . 3 1 1 . . . Melee Attacks . | . . . . . . . . . . Impact . | . . . . . . . . . . Slashing . | . . . . . . . . . . Piercing . | . . . . . . . . . . Sneak Attacks . | . . . . . . . . . . Combat Hostiles . | . . . . . . . . . . Follow-up Attacks . | . . . . . . . . . . Damage Inflicted 8685 | . 233 474 416 1218 1118 1112 872 345 2897 Guns 2225 | . 130 348 311 797 406 233 . . . Cannons 5003 | . . . . . 369 732 872 345 2685 Explosions 1447 | . 103 126 105 421 343 137 . . 212 Melee . | . . . . . . . . . . Ramming 10 | . . . . . . 10 . . . Kinetic . | . . . . . . . . . . Thermal 5005 | . 103 126 105 114 283 506 754 345 2669 Explosive 506 | . . . . 307 167 . . . 32 Electromagnetic 3164 | . 130 348 311 797 668 596 118 . 196 Impact . | . . . . . . . . . . Slashing . | . . . . . . . . . . Piercing . | . . . . . . . . . . Highest Corruption 15 | . . . . . . 3 . . 15 Average Corruption 4 | . . . . . . 2 . . 5 Corruption Purged . | . . . . . . . . . . Corruption Blocked . | . . . . . . . . . . Effects 33 | . . . . . . 6 . . 27 Message Errors 9 | . . . . . . 2 . . 7 Matter Fused 7 | . . . . . . 1 . . 6 Heat Flow Errors 2 | . . . . . . . . . 2 Energy Discharges 3 | . . . . . . 1 . . 2 Parts Fused 1 | . . . . . . . . . 1 Data Loss (minor) 5 | . . . . . . . . . 5 Data Loss (major) 1 | . . . . . . . . . 1 Misfires 1 | . . . . . . 1 . . . Misdirections 1 | . . . . . . . . . 1 Weapon Failures 3 | . . . . . . 1 . . 2 Overload Shots . | . . . . . . . . . . Overflow Damage 219 | . 16 . . 9 38 53 1 . 102 Projectiles 156 | . . . . . . 53 1 . 102 Explosions 63 | . 16 . . 9 38 . . . . Melee . | . . . . . . . . . . Knockbacks . | . . . . . . . . . . Impact . | . . . . . . . . . . Kinetic . | . . . . . . . . . . Secondary . | . . . . . . . . . . Self-Inflicted Damage 569 | . 48 7 31 105 136 5 . . 237 Shots 12 | . 2 1 1 2 2 . . . 4 Rammed 1 | . . . . . . 1 . . . Targets Rammed 1 | . . . . . . 1 . . . Kicked . | . . . . . . . . . . Crushed . | . . . . . . . . . . Highest Temperature 464 | . 178 120 165 289 388 441 354 340 464 Average Temperature 122 | . 105 50 59 105 112 121 140 160 156 Received Heat Transfer 2320 | . . 72 69 486 318 36 36 . 1303 Effects 13 | . . . . 1 2 1 . . 9 Shutdowns 2 | . . . . . . . . . 2 Energy Bleed 4 | . . . . 1 . . . . 3 Interference 2 | . . . . . . . . . 2 Matter Decay 1 | . . . . . 1 . . . . Short Circuit 2 | . . . . . 1 1 . . . Damage (major) 2 | . . . . . . . . . 2 Siege Activations . | . . . . . . . . . . Martial Activations . | . . . . . . . . . . Shielding Activations . | . . . . . . . . . . Robots Disrupted . | . . . . . . . . . . Combat Hostiles . | . . . . . . . . . . Robots Corrupted 5 | . . 1 . 2 2 . . . . Combat Hostiles 5 | . . 1 . 2 2 . . . . Parts Fried 9 | . . 1 1 4 1 . 1 . 1 Impact Corruptions . | . . . . . . . . . . Robots Melted 1 | . . . . . . . 1 . . Combat Hostiles 1 | . . . . . . . 1 . . Parts Melted 11 | . . . . . . 1 4 1 5 Heat Transferred 6749 | . 150 200 150 200 272 740 1036 481 3520 Parts Sabotaged . | . . . . . . . . . . Parts Stolen . | . . . . . . . . . . Parts Stripped . | . . . . . . . . . . Power Chain Reactions 8 | . 2 2 1 2 1 . . . . Alert | -11 -10 -10 -9 -8 -7 -6 -5 -5 -5 ------- Run | Yrd Mat Min Mat Mat Fac Fac Fac Was Fac Maximum Alert Level 1 | . . . . 1 . 1 . . 1 Low Security (%) 90 | 100 100 100 100 78 100 51 100 100 94 Level 1 9 | . . . . 21 . 48 . . 5 Level 2 . | . . . . . . . . . . Level 3 . | . . . . . . . . . . Level 4 . | . . . . . . . . . . Level 5 . | . . . . . . . . . . High Security . | . . . . . . . . . . Max Security . | . . . . . . . . . . Peak Influence 347 | . 73 77 99 235 177 273 84 3 347 Initial 88 | . . . 16 18 88 58 82 3 . Average 74 | . 17 32 55 88 71 187 56 . 68 Influence Increases 2881 | . 83 243 264 385 456 473 142 . 835 Destroy 0b10 Robot/C 1560 | . 60 200 180 240 240 180 80 . 380 Destroy 0b10 Robot/NC 115 | . 5 5 . 20 5 25 10 . 45 Destroy Leader 344 | . 10 20 40 42 60 46 40 . 86 Allied During Kill 7 | . . 7 . . . . . . . Successful Hack 31 | . . . 10 . 9 . . . 12 Disable Machine 435 | . . . 15 15 45 195 . . 165 Destroy Structure 254 | . 8 11 4 23 52 12 12 . 132 Lose Combat Pursuer 135 | . . . 15 45 45 15 . . 15 Influence Decreases 2692 | . 83 200 263 234 532 423 301 10 646 Entered New Map 315 | . . . 27 26 107 61 87 7 . Time Decay 2041 | . 83 180 216 178 395 362 214 3 410 Lost Part 316 | . . . 20 30 30 . . . 236 Lost Ally 20 | . . 20 . . . . . . . Squads Dispatched 26 | . 2 . 2 7 6 3 . . 6 Investigation 4 | . . . 1 2 1 . . . . Extermination 7 | . . . . . 2 2 . . 3 Reinforcement 12 | . 2 . 1 5 . 1 . . 3 Assault . | . . . . . . . . . . Garrison 3 | . . . . . 3 . . . . Intercept . | . . . . . . . . . . Searches Triggered . | . . . . . . . . . . Construction Impeded 3 | . . . . 2 . 1 . . . Haulers Reinforced . | . . . . . . . . . . Active Scanning Responses . | . . . . . . . . . . Cargo Convoy Interrupts . | . . . . . . . . . . Stealth | -11 -10 -10 -9 -8 -7 -6 -5 -5 -5 --------- Run | Yrd Mat Min Mat Mat Fac Fac Fac Was Fac Distress Signals 4 | . . . 1 2 . 1 . . . Communications Jammed . | . . . . . . . . . . Distress Signals . | . . . . . . . . . . Times Spotted 129 | . 5 10 15 25 20 14 5 . 35 Peak Tracking Total 7 | . 3 3 4 5 3 4 1 . 7 Tactical Retreats 9 | . . . 1 3 3 1 . . 1 Traps | -11 -10 -10 -9 -8 -7 -6 -5 -5 -5 ------- Run | Yrd Mat Min Mat Mat Fac Fac Fac Was Fac Traps Triggered 9 | . . . 1 2 2 1 1 . 2 Indirectly 1 | . . . . . . . . . 1 Trap Hack Attempts . | . . . . . . . . . . Triggered . | . . . . . . . . . . Disarmed . | . . . . . . . . . . Reprogrammed . | . . . . . . . . . . Reused . | . . . . . . . . . . Traps Extracted . | . . . . . . . . . . Installed . | . . . . . . . . . . Triggered . | . . . . . . . . . . Machines | -11 -10 -10 -9 -8 -7 -6 -5 -5 -5 ---------- Run | Yrd Mat Min Mat Mat Fac Fac Fac Was Fac Machines Disabled 29 | . . . 1 1 3 13 . . 11 Max in Single Turn 7 | . . . 1 1 2 7 . . 4 Garrison Access 1 | . . . . . 1 . . . . Machines Repaired . | . . . . . . . . . . Machines Dismantled . | . . . . . . . . . . Machines Sabotaged . | . . . . . . . . . . Overloaded Fab Kills . | . . . . . . . . . . Hacking | -11 -10 -10 -9 -8 -7 -6 -5 -5 -5 --------- Run | Yrd Mat Min Mat Mat Fac Fac Fac Was Fac Machines Accessed 24 | . 3 . 4 2 7 3 1 . 4 Terminals 11 | . 2 . 3 1 2 1 . . 2 Fabricators 1 | . . . . . 1 . . . . Repair Stations 6 | . 1 . 1 . 3 . 1 . . Recycling Units . | . . . . . . . . . . Scanalyzers 2 | . . . . 1 . . . . 1 Garrison Access 4 | . . . . . 1 2 . . 1 Total Hacks 60 | . 10 . 7 8 16 6 1 . 12 Successful 25 | . 4 . 3 4 10 . . . 4 Failed 34 | . 6 . 4 3 6 6 1 . 8 Catastrophic 7 | . 2 . 2 . . 3 . . . Database Lockouts 1 | . . . . 1 . . . . . Manual 10 | . 2 . 1 2 2 1 . . 2 Terminals 26 | . 8 . 4 2 5 3 . . 4 Fabricators 1 | . . . . . 1 . . . . Repair Stations 15 | . 2 . 3 . 9 . 1 . . Recycling Units . | . . . . . . . . . . Scanalyzers 11 | . . . . 6 . . . . 5 Garrison Access 7 | . . . . . 1 3 . . 3 Terminal Hacks 6 | . 2 . 1 . 2 . . . 1 Alert Level 2 | . . . . . 1 . . . 1 Locate Traps 1 | . 1 . . . . . . . . Maintenance Status 1 | . 1 . . . . . . . . Patrol Status 1 | . . . . . 1 . . . . Zone Layout 1 | . . . 1 . . . . . . Fabricator Hacks 1 | . . . . . 1 . . . . Network Status 1 | . . . . . 1 . . . . Repair Station Hacks 9 | . 2 . 2 . 5 . . . . Scan Component 5 | . 1 . 1 . 3 . . . . Repair 4 | . 1 . 1 . 2 . . . . Recycling Unit Hacks . | . . . . . . . . . . Scanalyzer 7 | . . . . 4 . . . . 3 Insert Component 1 | . . . . 1 . . . . . Analyze 1 | . . . . 1 . . . . . Retrieve Study 5 | . . . . 2 . . . . 3 Garrison Access Hacks 1 | . . . . . 1 . . . . Seal Access 1 | . . . . . 1 . . . . Unauthorized Hacks 1 | . . . . . 1 . . . . Terminals 1 | . . . . . 1 . . . . Botnet 1 | . . . . . 1 . . . . Fabricators . | . . . . . . . . . . Repair Stations . | . . . . . . . . . . Recycling Units . | . . . . . . . . . . Scanalyzers . | . . . . . . . . . . Garrison Access . | . . . . . . . . . . Data Cores Recovered 1 | . . . . . . . 1 . . Used . | . . . . . . . . . . Hacking Detections 20 | . 2 . 4 1 5 3 1 . 4 Full Trace Events 1 | . . . . 1 . . . . . Feedback Events . | . . . . . . . . . . Feedback Blocked . | . . . . . . . . . . Robot Schematics Acquired . | . . . . . . . . . . Robots Built . | . . . . . . . . . . Authchips . | . . . . . . . . . . Time . | . . . . . . . . . . Total Robot Build Rating . | . . . . . . . . . . Part Schematics Acquired 1 | . . . . 1 . . . . . Parts Built . | . . . . . . . . . . Authchips . | . . . . . . . . . . Time . | . . . . . . . . . . Total Part Build Rating . | . . . . . . . . . . Part Studies Acquired 5 | . . . . 2 . . . . 3 Parts Repaired 4 | . 1 . 1 . 2 . . . . Time 131 | . 26 . 26 . 79 . . . . Parts Recycled . | . . . . . . . . . . Recycled Matter . | . . . . . . . . . . Retrieved Matter . | . . . . . . . . . . Retrieved Components . | . . . . . . . . . . Parts Scanalyzed 1 | . . . . 1 . . . . . Part Schematics Acquired 1 | . . . . 1 . . . . . Parts Damaged . | . . . . . . . . . . Bothacking | -11 -10 -10 -9 -8 -7 -6 -5 -5 -5 ------------ Run | Yrd Mat Min Mat Mat Fac Fac Fac Was Fac Used RIF Installer . | . . . . . . . . . . Robots Hacked . | . . . . . . . . . . Non-combat . | . . . . . . . . . . Combat . | . . . . . . . . . . Robot Hacks Applied . | . . . . . . . . . . Relay Couplers Released . | . . . . . . . . . . Fabnet Peak Effective % . | . . . . . . . . . . Robots Rewired . | . . . . . . . . . . Allies Hacked . | . . . . . . . . . . Hacks Repelled . | . . . . . . . . . . Allies | -11 -10 -10 -9 -8 -7 -6 -5 -5 -5 -------- Run | Yrd Mat Min Mat Mat Fac Fac Fac Was Fac Total Allies 1 | . . 1 . . . . . . . Largest Group 1 | . . 1 . . . . . . . Highest-Rated Group 31 | . . 31 . . . . . . . Highest-Rated Ally 31 | . . 31 . . . . . . . Total Orders . | . . . . . . . . . . Ally Attacks 10 | . . 10 . . . . . . . Total Damage 192 | . . 192 . . . . . . . Kills 2 | . . 2 . . . . . . . Allies Corrupted . | . . . . . . . . . . Allies Melted . | . . . . . . . . . . Intel | -11 -10 -10 -9 -8 -7 -6 -5 -5 -5 ------- Run | Yrd Mat Min Mat Mat Fac Fac Fac Was Fac Active Infowar (turns) 575 | . . . 187 371 17 . . . . Sensors 388 | . . . . 371 17 . . . . Terrain 187 | . . . 187 . . . . . . Robot Analysis Total . | . . . . . . . . . . Derelict Logs Recovered 1 | . . 1 . . . . . . . Drone Launches . | . . . . . . . . . . Drone Recoveries . | . . . . . . . . . . Exploration | -11 -10 -10 -9 -8 -7 -6 -5 -5 -5 ------------- Run | Yrd Mat Min Mat Mat Fac Fac Fac Was Fac Turns Passed 5908 | 74 344 546 487 382 1143 833 446 276 1377 Spaces Moved 3367 | 40 166 264 317 181 621 526 261 172 819 Core 3 | 3 . . . . . . . . . Treads 467 | 37 166 264 . . . . . . . Legs . | . . . . . . . . . . Wheels 2897 | . . . 317 181 621 526 261 172 819 Hover . | . . . . . . . . . . Flight . | . . . . . . . . . . Fastest Speed 50 | 50 160 160 105 110 110 125 140 140 115 Average Speed 137 | 151 160 160 112 112 137 138 140 140 138 Slowest Speed 190 | 160 160 160 120 125 160 140 140 140 190 Overloaded Moves . | . . . . . . . . . . Propulsion Burnouts . | . . . . . . . . . . Robots Hopped . | . . . . . . . . . . Potential Cave-ins . | . . . . . . . . . . Cave-ins Triggered . | . . . . . . . . . . Exploration Rate (%) 31 | 4 31 68 34 24 22 23 7 80 21 Regions Visited 9 Branch Regions 1 Pre-discovered Areas . | . . . . . . . . . . Known Exits Taken . | . . . . . . . . . . Unknown Exits Taken 7 | 1 1 1 1 1 1 1 . . . Scrap Searched 1 | . . 1 . . . . . . . Spaces Dug 8 | . . 5 . . . . . . 3 Terrain Destroyed 197 | . 7 11 2 21 73 12 6 . 65 Melee . | . . . . . . . . . . Projectile 42 | . . 5 . . . 2 6 . 29 AOE 155 | . 7 6 2 21 73 10 . . 36 Terrain Rammed . | . . . . . . . . . . Walls Destroyed . | . . . . . . . . . . Machines Disabled . | . . . . . . . . . . Actions | -11 -10 -10 -9 -8 -7 -6 -5 -5 -5 --------- Run | Yrd Mat Min Mat Mat Fac Fac Fac Was Fac Total 4184 | 51 230 319 403 283 848 598 307 201 944 Wait 256 | . 42 8 27 28 125 11 . . 15 Move 3359 | 39 165 263 316 180 620 525 261 171 819 Hop . | . . . . . . . . . . Pick Up 74 | 4 8 5 7 7 13 11 6 3 10 Fast Attach 48 | 6 5 1 4 4 9 5 1 6 7 Attach 45 | 1 . 3 4 9 8 5 5 . 10 Detach 35 | 1 3 3 4 6 6 5 3 3 1 Swap 19 | . . . 5 . 6 2 4 . 2 Drop 85 | . . 6 10 4 16 16 9 13 11 Fire 253 | . 7 30 26 45 44 17 18 5 61 Melee . | . . . . . . . . . . Ram 1 | . . . . . . 1 . . . Kick . | . . . . . . . . . . Crush . | . . . . . . . . . . Escape Stasis 8 | . . . . . . . . . 8 Rewire 1 | . . . . . 1 . . . . Trap . | . . . . . . . . . . Miscellaneous . | . . . . . . . . . . Route ------- -11/Scrapyard -10/Materials -10/Mines -9/Materials -8/Materials -7/Factory -6/Factory -5/Factory -5/Waste -5/Factory History --------- Turn | Location | Event 4 | -11/Scrapyard | Discovered new exit (range 16) 75 | -11/Scrapyard | Entered Materials 270 | -10/Materials | Repaired Lgt. Treads 310 | -10/Materials | Build established: Mutant 383 | -10/Materials | Discovered new exit (range 12) 419 | -10/Materials | Entered Mines 422 | -10/Mines | Received a Mining Laser from a helpful Derelict 716 | -10/Mines | Learned Materials stockpile data 742 | -10/Mines | Discovered new exit (range 12) 764 | -10/Mines | Excavation squad dispatched 764 | -10/Mines | A large section of the Mines collapsed 965 | -10/Mines | Entered Materials 965 | -9/Materials | Evolved 2 slots: Propulsion x1, Utility x1 1014 | -9/Materials | Repaired Lgt. Treads 1387 | -9/Materials | Discovered new exit (range 16) 1452 | -9/Materials | Entered another Materials area 1452 | -8/Materials | Evolved 2 slots: Propulsion x1, Utility x1 1624 | -8/Materials | Central database locked down 1812 | -8/Materials | Discovered new exit (range 15) 1834 | -8/Materials | Entered Factory 1834 | -7/Factory | Evolved 2 slots: Utility x1, Weapon x1 2238 | -7/Factory | Repaired Corrupted Lgt. Deuterium Engine 2265 | -7/Factory | Repaired Lgt. Treads+ 2449 | -7/Factory | Allied Derelicts emerged from ambush trap array 2945 | -7/Factory | Discovered new exit (range 16) 2977 | -7/Factory | Entered another Factory area 2977 | -6/Factory | Evolved 2 slots: Propulsion x1, Utility x1 3014 | -6/Factory | Build established: Tank 3753 | -6/Factory | Discovered new exit (range 5) 3810 | -6/Factory | Entered another Factory area 3810 | -5/Factory | Evolved 2 slots: Power x1, Utility x1 4242 | -5/Factory | Discovered new exit (range 12) 4256 | -5/Factory | Sucked down chute 4256 | -5/Factory | Entered Waste 4256 | -5/Waste | The area was eerily silent 4334 | -5/Waste | Found Damper Plating 4413 | -5/Waste | Discovered new exit (range 16) 4423 | -5/Waste | Build established: Scavenger-Tank 4532 | -5/Waste | Entered Factory 4836 | -5/Factory | Spotted B-75 Beast 5148 | -5/Factory | Destroyed B-75 Beast 5865 | -5/Factory | System corruption reached 10% 5899 | -5/Factory | Core integrity fell below 50% 5907 | -5/Factory | Core integrity fell below 20% 5909 | -5/Factory | Destroyed by X-77 Beamer with Gatling Laser Last Messages --------------- 05895_ Wheel+ destroyed. 05896_ Overheating: System interference. 05896_ Core Analyzer temporarily disabled. 05896_ Com. Ion Cannon temporarily disabled. 05897_ Slug penetrates Wall. 05899_ Com. Ion Cannon destroyed. 05900_ Hvy. Particle Cannon+ destroyed. 05900_ Penetrated by Slug. 05901_ Adv. Cooling System destroyed. 05901_ Rnf. Fission Core destroyed. 05902_ Overheating: Core Analyzer damaged (-5). 05902_ Overheating: Huge Storage Unit damaged (-119). 05902_ Proton Cannon destroyed. 05903_ Disruptor Cannon destroyed. 05903_ Penetrated by Slug. 05907_ Wheel+ destroyed. 05908_ Y-64 Sentinel critical meltdown. 05909_ System corrupted: Component data lost. 05909_ Wheel+ destroyed. Map ----- +----------------------------------------------------+ | ?????????????????????????????????????????????????? | | ?????????????????????????????????????????????????? | | ?????????????????????????????????????????????????? | | ?????????????????????????????????????????????????? | | ?????????????????????????????????????????????????? | | ?????????????????????????????????????????????????? | | ?????????????????????????????????????????????????? | | ?????????????????????????????????????????????????? | | ?????????????????????????????????????????????????? | | ?????????????????????????????????????????????????? | | ????????????????????????? ??????????????????????? | | ????????????????????????? A??????????????????????? | | ????????????????????????? ??????????????????????? | | ????????????????????????"g #?????????????????????? | | ????????????????????????" u#???????????????????### | | ????????????????????????" g#???????????????????# | | ???????????????????????? #???????????????????# " | | ???????????????????????? #???????????????????# | | ???????????????????????##; ###?????????????????#! | | ???????????????????????# #?????????????????# | | ???????????????????????# ! #?????????????????### | | ???????????????????????+ *%! #???????????????????? | | ???????????????????????#*![ p#???????????????????? | | ???????????????????????#[%[ #???????????????????? | | ???????????????????????#;! #????????????????????? | | ????????????????????????#@ #????????????????????? | | ????????????????????????# #????????????????????? | | ????????????????????????# #????????????????????? | | ??????????????????????### ###??????????????????? | | ???????????????######## #??????????????##### | | ???????????????# #?????????????## # | | ???????????????# #?????????????## * | | ???????????????# +?????????????##!!!# | | ???????????????# #??????????????## ## | | ???????????????# %* #???????????????#[## | | ???????????????# #" #??????????????##[## | | ???????????????# ## ##########??????????##%# | | ???????????????#^^ # xx ##????????### # | | ???????????????+ ^ " =!! ############=# | | ???????????????# =%= % %+ | | ???????????????# =%!! ########"###=# | | ???????????????# * ] #?????##??#!# | | ???????????????# % ###?????????#%#? | | ???????????????# #?????????#*#? | | ???????????????# #?????????# #? | | ???????????????# # % ###?????????# #? | | ???????????????# # # #?????????# #? | | ???????????????# # ########### #? | | ???????????????# # #? | | ???????????????# ##### # # #? | +----------------------------------------------------+ Best States ------------- Heat Dissipation 98 Coolant Potential 50 Energy Generation 35 Energy Capacity 540 Matter Stores 300 Matter Capacity 300 Sight Range 16 Robot Scan Range 15 Terrain Scan Range 16 Terrain Scan Density 10 Armor Coverage 1600 Resistance: KI 20 Resistance: EM 90 Evasion (%) 40 Core Analysis 9 Recoil Reduction 2 Item Schematics ----------------- Hvy. Armor Plating | -8/Materials | Scanalyzed Robot Schematics ------------------ None Fabricated ------------ Nothing Repaired ---------- Lgt. Treads | 80% | -10/Materials Lgt. Treads | 27% | -9/Materials Lgt. Deuterium Engine | 96% | -7/Factory | Corrupted Lgt. Treads | 5% | -7/Factory Studied --------- Wheel | -8/Materials | Hacked Lgt. Treads | -8/Materials | Hacked Hvy. Treads | -5/Factory | Hacked Hvy. Ion Cannon | -5/Factory | Hacked Hvy. Particle Cannon | -5/Factory | Hacked Alien Tech Used ----------------- None Achievements -------------- Tank Challenges ------------ None Game ------ Seed TrackerQuantumStreamer Manual? 0 Play Time 02:13:31 Cumulative 47.9 hours Start 2026.07.01 @ 22:25:23 End 2026.07.03 @ 23:48:04 Sessions 3 Manual Loads 0 Difficulty Rogue Special Mode None Game No. 48 Rogue 48 Adventurer 0 Explorer 0 Win Type - Total 0 Types 0/0/0/0/0/0/0/0/0/0 Lore% 20 Gallery% 29 Achievement% 25 Wizard Run 0 Options --------- Layout 1 ASCII 0 Keyboard 1 Movement Numpad Keybinds 0 Fullscreen 1 Font 24/Smallcaps Map View 50x35 Zoom Use 0% Tactical HUD 1 Map Filters NONE Filters NONE Steam 1 RUN: 6bce4660-0b95-470f-ba89-79b8bac5254f